bitfinex/quotes_BTCUSD_20220105
["timestamp","ask_amount","ask_price","bid_price","bid_amount"]
[1641408465764,1.3485,46026.0,46024.0,0.85965623]
[1641408465963,0.359293,46025.0,46024.0,0.85965623]
[1641408466162,0.402793,46025.0,46024.0,0.85965623]
[1641408466367,0.502793,46025.0,46024.0,0.85965623]
[1641408466762,0.507793,46025.0,46024.0,0.85965623]
[1641408466963,1.662793,46025.0,46024.0,0.85965623]
[1641408467162,1.662793,46025.0,46021.0,0.004]
[1641408467163,1.717134,46025.0,46022.0,0.054338]
[1641408467365,0.255123,46023.0,46021.0,0.86365623]
[1641408467602,0.0435,46022.0,46021.0,0.86417759]
[1641408468004,0.0935,46022.0,46021.0,0.86417759]
[1641408468205,0.0935,46022.0,46021.0,0.00452136]
[1641408468404,0.147841,46022.0,46021.0,0.00452136]
[1641408468803,1.670134,46022.0,46021.0,0.00452136]
[1641408469204,0.515134,46022.0,46021.0,0.00452136]
[1641408469503,0.155841,46022.0,46021.0,0.00452136]
[1641408469704,0.515134,46022.0,46021.0,0.00452136]
[1641408470105,0.507134,46022.0,46021.0,0.00452136]
[1641408470706,0.154841,46022.0,46021.0,0.00452136]
[1641408471954,0.50417976,46022.0,46021.0,0.00452136]
[1641408472352,0.14488676,46022.0,46021.0,0.00452136]
[1641408472853,0.51117976,46022.0,46021.0,0.00452136]
[1641408473054,0.61117976,46022.0,46021.0,0.00452136]
[1641408474053,0.50417976,46022.0,46021.0,0.00452136]
[1641408474753,0.51017976,46022.0,46021.0,0.00452136]
[1641408475000,0.15088676,46022.0,46021.0,0.004]
[1641408475701,0.13948482,46022.0,46021.0,0.004]
[1641408476501,0.49277782,46022.0,46021.0,0.004]
[1641408476701,1.65277782,46022.0,46021.0,0.004]
[1641408477603,1.75277782,46022.0,46021.0,0.004]
[1641408478003,1.74777782,46022.0,46021.0,0.004]
[1641408478404,1.7489946,46022.0,46021.0,0.004]
[1641408478603,1.28,46021.0,46019.0,0.00052153]
[1641408478852,1.453623,46020.0,46019.0,0.00052153]
[1641408479052,1.603623,46020.0,46019.0,0.00052153]
[1641408479853,1.603623,46020.0,46016.0,0.01226188]
[1641408480052,1.514293,46017.0,46016.0,0.01226188]
[1641408480252,1.514293,46017.0,46012.0,0.054349]
[1641408480253,1.557793,46017.0,46012.0,0.054349]
[1641408480451,1.155,46016.0,46012.0,0.054349]
[1641408480653,0.298623,46015.0,46010.0,0.42]
[1641408480854,1.503623,46015.0,46010.0,0.42]
[1641408481051,0.054352,46013.0,46010.0,0.42]
[1641408481254,0.982793,46012.0,46004.0,0.108704]
[1641408481452,0.452793,46012.0,46005.0,0.42]
[1641408481652,1.707793,46012.0,46005.0,0.42]
[1641408482056,1.707793,46012.0,46005.0,0.474356]
[1641408482252,1.707793,46012.0,46006.0,0.15818934]
[1641408482502,1.707793,46012.0,46006.0,0.20818934]
[1641408482700,1.63830244,46012.0,46005.0,0.42]
[1641408482902,1.63804104,46012.0,46005.0,0.42]
[1641408483101,1.63804104,46012.0,46002.0,0.23941467]
[1641408483501,1.63804104,46012.0,46009.0,0.00053085]
[1641408484103,1.63304104,46012.0,46009.0,0.00053085]
[1641408484303,1.68304104,46012.0,46009.0,0.00053085]
[1641408484706,1.68804104,46012.0,46009.0,0.00053085]
[1641408485505,1.68804104,46012.0,46011.0,0.00518723]
[1641408487555,1.68785164,46012.0,46011.0,0.00518723]
[1641408487953,1.68285164,46012.0,46011.0,0.00518723]
[1641408488354,1.78765159,46012.0,46011.0,0.00518723]
[1641408488556,1.16,46011.0,46009.0,0.00053085]
[1641408488761,1.17986576,46010.0,46009.0,0.00053085]
[1641408488956,1.2954053,46010.0,46009.0,0.00053085]
[1641408489156,2.0466353,46010.0,46001.0,0.004]
[1641408489357,0.280149,46006.0,46001.0,0.004]
[1641408489557,0.255123,46002.0,46001.0,0.004]
[1641408489756,0.370223,46002.0,46001.0,0.004]
[1641408490008,0.520223,46002.0,46001.0,0.004]
[1641408490507,0.574593,46002.0,46001.0,0.004]
[1641408490704,0.579593,46002.0,46001.0,0.004]
[1641408491406,0.429593,46002.0,46001.0,0.004]
[1641408492009,0.424593,46002.0,46001.0,0.004]
[1641408492411,0.68732064,46002.0,46001.0,0.004]
[1641408492613,0.73732064,46002.0,46001.0,0.004]
[1641408492810,0.92287371,46002.0,46001.0,0.004]
[1641408493011,2.02896064,46002.0,46001.0,0.004]
[1641408493212,0.87396064,46002.0,46001.0,0.004]
[1641408493412,0.87396064,46002.0,46001.0,0.00519753]
[1641408493413,0.87371402,46002.0,46001.0,0.00519753]
[1641408493855,0.87371402,46002.0,46001.0,9.753e-05]
[1641408493856,0.87495115,46002.0,46001.0,9.753e-05]
[1641408494058,0.054377,45999.0,45996.0,0.01226217]
[1641408494258,0.24247868,45997.0,45991.0,0.004]
[1641408494454,0.255123,45993.0,45991.0,0.00246218]
[1641408494655,0.0435,45992.0,45991.0,0.05683618]
[1641408494956,0.0435,45992.0,45991.0,0.35258557]
[1641408495158,0.097876,45992.0,45991.0,0.35258557]
[1641408495357,0.097876,45992.0,45991.0,0.00246218]
[1641408495555,0.583599,45992.0,45991.0,0.00246218]
[1641408495756,1.738599,45992.0,45991.0,0.00246218]
[1641408495958,1.838599,45992.0,45991.0,0.00246218]
[1641408496356,1.94636698,45992.0,45991.0,0.00246218]
[1641408496755,1.95236698,45992.0,45991.0,0.00246218]
[1641408497618,0.0012108,45988.0,45986.0,0.01226252]
[1641408497820,2.44422,45987.0,45986.0,6.252e-05]
[1641408498017,1.79643629,45987.0,45986.0,6.252e-05]
[1641408498214,1.79643629,45987.0,45981.0,0.004]
[1641408498416,0.359573,45983.0,45981.0,0.004]
[1641408498616,0.0435,45982.0,45981.0,0.004]
[1641408498817,0.184102,45982.0,45981.0,0.004]
[1641408499017,0.543675,45982.0,45981.0,0.004]
[1641408499220,1.04,45981.0,45972.0,0.85965623]
[1641408499517,1.369831,45980.0,45979.0,0.00052085]
[1641408499718,0.84,45979.0,45971.0,0.004]
[1641408499916,0.054401,45974.0,45971.0,0.004]
[1641408500116,0.164831,45973.0,45971.0,0.004]
[1641408500323,0.214831,45973.0,45971.0,0.004]
[1641408500718,0.222831,45973.0,45971.0,0.004]
[1641408501356,0.1015,45973.0,45971.0,0.058397]
[1641408501555,0.1015,45973.0,45971.0,0.004]
[1641408501556,0.0515,45973.0,45971.0,0.004]
[1641408501860,0.0435,45972.0,45971.0,0.00520967]
[1641408502260,0.0435,45984.0,45971.0,0.46478267]
[1641408502458,0.0435,45984.0,45976.0,0.00122897]
[1641408502658,0.0435,45984.0,45983.0,0.15687623]
[1641408502861,0.0435,45984.0,45977.0,0.054376]
[1641408503458,0.152265,45984.0,45977.0,0.054376]
[1641408503660,0.0435,45984.0,45977.0,0.054376]
[1641408503959,0.0435,45984.0,45983.0,0.13581535]
[1641408504759,0.10488,45984.0,45983.0,0.13581535]
[1641408505002,0.0505,45984.0,45983.0,0.13581535]
[1641408505705,0.0505,45984.0,45983.0,0.59538835]
[1641408505706,0.007,45984.0,45983.0,0.59538835]
[1641408505905,0.007,45984.0,45983.0,2.0466597]
[1641408506104,0.054369,45991.0,45983.0,2.0466597]
[1641408506306,0.054369,45991.0,45988.0,0.1533344]
[1641408506504,0.054369,45991.0,45989.0,0.2772184]
[1641408506705,0.077369,45991.0,45989.0,0.2772184]
[1641408507309,0.077369,45991.0,45990.0,1.07450849]
[1641408507510,0.023,45991.0,45990.0,1.43408149]
[1641408507709,0.5,46000.0,45991.0,1.839573]
[1641408507915,0.65123,46010.0,45991.0,1.54955127]
[1641408508110,0.65123,46010.0,46000.0,0.17593595]
[1641408508311,0.65123,46010.0,46008.0,0.14733419]
[1641408508759,0.66723,46010.0,46006.0,0.12724621]
[1641408509255,0.66723,46010.0,46007.0,0.108683]
[1641408509454,0.66723,46010.0,46008.0,0.05434046]
[1641408510059,0.66723,46010.0,46009.0,2.08477498]
[1641408510060,0.42263,46010.0,46009.0,2.08477498]
[1641408510258,0.0001,46023.0,46020.0,0.00123931]
[1641408510462,0.0003,46030.0,46022.0,0.15241577]
[1641408510463,0.0041,46029.0,46022.0,0.15241577]
[1641408510655,0.0041,46029.0,46023.0,0.36087101]
[1641408510858,0.0041,46029.0,46028.0,1.62338839]
[1641408511058,0.0041,46029.0,46028.0,1.98296139]
[1641408511262,0.0004,46031.0,46028.0,1.98296139]
[1641408511263,0.0003,46031.0,46029.0,1.839573]
[1641408511459,0.0003,46031.0,46030.0,1.6212383]
[1641408511656,0.0002,46031.0,46030.0,1.9808113]
[1641408511856,0.0002,46031.0,46030.0,0.5008113]
[1641408512704,0.0002,46031.0,46030.0,0.76650948]
[1641408512904,0.0002,46031.0,46030.0,0.77350948]
[1641408513106,0.0002,46031.0,46030.0,0.63350948]
[1641408513304,0.0002,46031.0,46030.0,0.0082383]
[1641408513703,0.0002,46031.0,46030.0,0.007]
[1641408514107,0.0002,46031.0,46029.0,0.054308]
[1641408514804,0.0042,46031.0,46029.0,0.056308]
[1641408516006,0.0002,46031.0,46029.0,0.054308]
[1641408516851,0.0042,46031.0,46029.0,0.056308]
[1641408518054,0.0002,46031.0,46029.0,0.054308]
[1641408518754,0.0052,46031.0,46030.0,0.3332122]
[1641408520203,0.0002,46031.0,46030.0,0.3332122]
[1641408520810,0.0002,46031.0,46030.0,0.3362122]
[1641408520811,0.0062,46031.0,46030.0,0.3362122]
[1641408521008,0.005,46031.0,46030.0,2.1757852]
[1641408521207,0.0025,46031.0,46030.0,2.1757852]
[1641408521405,0.0001,46034.0,46031.0,0.360273]
[1641408521607,0.0003,46044.0,46033.0,0.054302]
[1641408521806,0.0003,46044.0,46035.0,0.14715514]
[1641408522006,0.0003,46044.0,46036.0,0.61501136]
[1641408522209,0.0029,46039.0,46037.0,0.25932994]
[1641408522406,0.0029,46039.0,46038.0,1.839573]
[1641408522605,0.0002,46041.0,46039.0,1.48]
[1641408522806,0.0002,46041.0,46040.0,2.23964913]
[1641408523205,0.0002,46041.0,46040.0,0.75964913]
[1641408524650,0.0002,46041.0,46040.0,1.26964913]
[1641408524851,0.0002,46042.0,46041.0,1.62]
[1641408525052,0.1002,46042.0,46041.0,0.50086019]
[1641408525250,0.1002,46042.0,46041.0,0.75324332]
[1641408525651,0.1002,46042.0,46041.0,0.98210436]
[1641408526155,0.0952,46042.0,46041.0,0.98210436]
[1641408526751,0.0952,46042.0,46041.0,0.99110436]
[1641408526952,0.0952,46042.0,46041.0,0.63153136]
[1641408527614,0.0003,46044.0,46041.0,0.99110436]
[1641408527812,0.0003,46044.0,46042.0,0.5869098]
[1641408528013,0.0956,46043.0,46042.0,0.5869098]
[1641408528214,0.0956,46043.0,46042.0,0.2273368]
[1641408528819,0.0956,46043.0,46042.0,0.2563368]
[1641408529517,0.0956,46043.0,46042.0,0.029]
[1641408530017,0.0956,46043.0,46041.0,0.23014823]
[1641408530218,0.0956,46043.0,46041.0,0.00128719]
[1641408530421,0.0435,46042.0,46040.0,0.054297]
[1641408531959,0.14991,46043.0,46040.0,0.054297]
[1641408532159,0.0435,46042.0,46040.0,0.054297]
[1641408532359,0.0435,46042.0,46039.0,0.05481238]
[1641408532561,0.0952,46040.0,46039.0,0.05481238]
[1641408532760,0.1387,46040.0,46039.0,0.05481238]
[1641408534765,0.1447,46040.0,46039.0,0.05481238]
[1641408535406,0.4796,46040.0,46039.0,0.00051438]
[1641408535603,1.039173,46040.0,46039.0,0.00051438]
[1641408536205,1.033173,46040.0,46039.0,0.00051438]
[1641408536606,2.013173,46040.0,46039.0,0.00051438]
[1641408536804,1.039173,46040.0,46039.0,0.00051438]
[1641408537604,1.389173,46040.0,46039.0,0.00051438]
[1641408538005,1.383173,46040.0,46039.0,0.00051438]
[1641408538205,2.538173,46040.0,46039.0,0.00051438]
[1641408538950,0.988173,46040.0,46039.0,0.00051438]
[1641408539156,0.503273,46040.0,46039.0,0.00051438]
[1641408539553,0.408073,46040.0,46039.0,0.0017577]
[1641408539757,0.005,46040.0,46039.0,0.0017577]
[1641408539953,0.005,46040.0,46039.0,0.00124332]
[1641408540154,0.0004,46043.0,46040.0,0.054305]
[1641408540455,0.05222624,46045.0,46041.0,0.26958174]
[1641408540657,0.0952,46042.0,46041.0,0.26958174]
[1641408541560,0.0952,46042.0,46041.0,0.49485844]
[1641408542356,0.0952,46042.0,46041.0,0.26958174]
[1641408542806,0.0952,46042.0,46041.0,0.29558174]
[1641408543005,0.0972,46042.0,46041.0,0.29558174]
[1641408543208,0.0972,46042.0,46041.0,0.18558174]
[1641408543404,0.0972,46042.0,46041.0,0.026]
[1641408544308,0.0952,46042.0,46041.0,0.15427734]
[1641408544906,0.0952,46042.0,46041.0,0.17627734]
[1641408544907,0.0972,46042.0,46041.0,0.17627734]
[1641408546658,0.0952,46042.0,46041.0,0.15427734]
[1641408546856,0.0952,46042.0,46041.0,0.40764511]
[1641408547254,0.0952,46042.0,46041.0,0.18327734]
[1641408548057,0.0952,46042.0,46041.0,0.15427734]
[1641408548854,0.0972,46042.0,46041.0,0.18027734]
[1641408550204,0.0952,46042.0,46041.0,0.15427734]
[1641408551006,0.0972,46042.0,46041.0,0.17927734]
[1641408551405,0.0972,46042.0,46041.0,0.1808076]
[1641408552204,0.0952,46042.0,46041.0,0.1558076]
[1641408553005,0.0972,46042.0,46041.0,0.1828076]
[1641408554259,0.1472,46042.0,46041.0,0.1828076]
[1641408554454,0.1472,46042.0,46041.0,0.02853026]
[1641408554660,0.1472,46042.0,46041.0,0.00153026]
[1641408554956,0.1492,46042.0,46041.0,0.00853026]
[1641408556255,0.1452,46042.0,46041.0,0.00153026]
[1641408556856,0.1492,46042.0,46041.0,0.00653026]
[1641408557908,0.14893842,46042.0,46041.0,0.00653026]
[1641408558212,0.14493842,46042.0,46041.0,0.00153026]
[1641408559010,0.14993842,46042.0,46041.0,0.00153026]
[1641408559408,0.14878108,46042.0,46041.0,0.00153026]
[1641408560209,0.14378108,46042.0,46041.0,0.00153026]
[1641408561111,0.14878108,46042.0,46041.0,0.00353026]
[1641408562159,0.14378108,46042.0,46041.0,0.00153026]
[1641408562960,0.14878108,46042.0,46041.0,0.00253026]
[1641408563962,0.1002,46042.0,46041.0,0.00253026]
[1641408564164,0.0952,46042.0,46041.0,0.00153026]
[1641408564662,0.1452,46042.0,46041.0,0.00153026]
[1641408564866,0.1907,46042.0,46041.0,0.00653026]
[1641408565320,0.1407,46042.0,46041.0,0.00653026]
[1641408566320,0.1387,46042.0,46041.0,0.00153026]
[1641408566520,0.1887,46042.0,46041.0,0.00153026]
[1641408566920,0.1427,46042.0,46041.0,0.01353026]
[1641408567322,0.1927,46042.0,46041.0,0.01353026]
[1641408568123,0.1887,46042.0,46041.0,0.00153026]
[1641408568953,0.1917,46042.0,46041.0,0.01853026]
[1641408569656,0.1417,46042.0,46041.0,0.01853026]
[1641408570255,0.18858778,46042.0,46041.0,0.00153026]
[1641408570854,0.19158778,46042.0,46041.0,0.01753026]
[1641408572255,0.18858778,46042.0,46041.0,0.00153026]
[1641408572909,0.19358778,46042.0,46041.0,0.01653026]
[1641408574211,0.17858778,46042.0,46041.0,0.00153026]
[1641408574912,0.1437,46042.0,46041.0,0.00553026]
[1641408576258,0.1437,46042.0,46041.0,0.00153026]
[1641408576259,0.1887,46042.0,46041.0,0.00153026]
[1641408576856,0.1887,46042.0,46041.0,0.00253026]
[1641408577056,0.2087,46042.0,46041.0,0.00253026]
[1641408578257,0.1887,46042.0,46041.0,0.00153026]
[1641408579059,0.1937,46042.0,46041.0,0.00553026]
[1641408580109,0.1937,46042.0,46041.0,0.00153026]
[1641408580310,0.1887,46042.0,46041.0,0.00153026]
[1641408580915,0.1937,46042.0,46041.0,0.00553026]
[1641408582112,0.1937,46042.0,46041.0,0.00153026]
[1641408582312,0.1887,46042.0,46041.0,0.00153026]
[1641408582519,0.1887,46042.0,46034.0,0.86088869]
[1641408582520,1.47,46041.0,46034.0,0.86088869]
[1641408582715,0.9852,46035.0,46034.0,0.91520969]
[1641408582915,1.81418409,46035.0,46031.0,0.86088869]
[1641408583119,0.79087566,46032.0,46031.0,0.86088869]
[1641408583314,0.52480266,46032.0,46031.0,0.86088869]
[1641408583514,0.80041288,46032.0,46031.0,0.86088869]
[1641408583966,0.80041288,46032.0,46025.0,0.108661]
[1641408584167,0.05433116,46028.0,46025.0,0.108661]
[1641408584369,0.0952,46026.0,46025.0,0.108661]
[1641408584565,0.0952,46026.0,46018.0,0.86088869]
[1641408584566,0.1387,46026.0,46018.0,0.86088869]
[1641408584767,0.1887,46026.0,46018.0,0.86088869]
[1641408584966,0.0975,46026.0,46025.0,0.002]
[1641408585167,1.22442875,46026.0,46025.0,0.002]
[1641408585567,1.32442875,46026.0,46025.0,0.002]
[1641408585968,1.04275329,46026.0,46025.0,0.002]
[1641408586170,1.08875329,46026.0,46021.0,0.10867]
[1641408586371,0.054336,46019.0,46016.0,0.23884595]
[1641408586569,0.0435,46018.0,46016.0,0.23884595]
[1641408586769,0.0952,46017.0,46016.0,0.23884595]
[1641408586969,0.1387,46017.0,46016.0,0.25584595]
[1641408587170,0.1887,46017.0,46016.0,0.25584595]
[1641408588110,0.1887,46017.0,46016.0,0.14717695]
[1641408588311,0.243038,46017.0,46016.0,0.13017695]
[1641408588911,0.246038,46017.0,46016.0,0.15217695]
[1641408590315,0.243038,46017.0,46016.0,0.13017695]
[1641408590917,0.245038,46017.0,46016.0,0.15317695]
[1641408592156,0.245038,46017.0,46016.0,0.023]
[1641408592356,0.245038,46017.0,46015.0,0.108671]
[1641408592357,0.243038,46017.0,46015.0,0.108671]
[1641408592958,0.246038,46017.0,46015.0,0.126671]
[1641408593661,0.09188735,46016.0,46015.0,0.126671]
[1641408593957,0.13538735,46016.0,46015.0,0.126671]
[1641408594859,0.13538735,46016.0,46015.0,0.018]
[1641408594860,0.0435,46016.0,46015.0,0.018]
[1641408595114,0.0435,46016.0,46015.0,0.38182625]
[1641408595115,0.003,46016.0,46015.0,0.38182625]
[1641408595515,0.09488735,46016.0,46015.0,0.38182625]
[1641408595914,0.003,46016.0,46015.0,0.02225325]
[1641408596512,0.0435,46024.0,46016.0,0.054331]
[1641408596714,0.09188735,46020.0,46016.0,0.054331]
[1641408597117,0.09188735,46020.0,46016.0,0.064331]
[1641408598213,0.14621735,46020.0,46016.0,0.064331]
[1641408598414,0.14621735,46020.0,46017.0,0.05433]
[1641408598616,0.09188735,46020.0,46017.0,0.108655]
[1641408599058,0.09188735,46020.0,46017.0,0.119655]
[1641408599262,0.0935,46021.0,46017.0,0.119655]
[1641408599457,0.09188735,46020.0,46017.0,0.119655]
[1641408600061,0.64,46017.0,46016.0,0.054331]
[1641408600261,0.92986035,46017.0,46014.0,0.054345]
[1641408600461,0.45749817,46015.0,45995.0,2.29448869]
[1641408600660,0.042688,46005.0,46000.0,0.108706]
[1641408600861,0.09188735,46001.0,46000.0,0.108706]
[1641408601060,0.13538735,46001.0,46000.0,0.16724543]
[1641408602507,0.0435,46001.0,46000.0,0.16724543]
[1641408603107,0.0435,46001.0,46000.0,0.20024543]
[1641408604310,0.0435,46001.0,46000.0,0.16724543]
[1641408605210,0.0435,46001.0,46000.0,0.20224543]
[1641408606356,0.0435,46001.0,46000.0,0.16724543]
[1641408606662,0.0435,46001.0,46000.0,0.52681843]
[1641408606857,0.0435,46009.0,46001.0,1.48]
[1641408607058,0.01216365,46010.0,46005.0,0.05131419]
[1641408607256,0.01216365,46010.0,46006.0,0.359573]
[1641408607458,0.01216365,46010.0,46008.0,2.73641605]
[1641408607659,0.21736,46035.0,46011.0,0.14617867]
[1641408607660,0.09188735,46022.0,46011.0,0.14617867]
[1641408607860,0.054319,46030.0,46024.0,0.15261371]
[1641408608058,0.0435,46033.0,46030.0,0.12916132]
[1641408608258,0.0435,46033.0,46030.0,0.054317]
[1641408608259,0.09188735,46031.0,46030.0,0.054317]
[1641408608459,0.09188735,46031.0,46030.0,0.76]
[1641408608657,0.65173,46032.0,46030.0,0.98865696]
[1641408608860,0.65173,46032.0,46031.0,2.03876212]
[1641408609060,0.65173,46032.0,46031.0,2.39833512]
[1641408609261,0.0435,46041.0,46031.0,1.05477582]
[1641408609458,0.13538735,46041.0,46034.0,0.108609]
[1641408609659,0.13538735,46041.0,46035.0,0.21924794]
[1641408609861,0.13538735,46041.0,46035.0,0.2237172]
[1641408610113,0.13538735,46041.0,46032.0,0.23662668]
[1641408610114,0.14620035,46036.0,46032.0,0.23662668]
[1641408610311,0.097813,46036.0,46033.0,0.054305]
[1641408610510,0.09188735,46034.0,46032.0,0.108609]
[1641408611110,0.14788735,46034.0,46032.0,0.111609]
[1641408611611,0.20220535,46034.0,46032.0,0.111609]
[1641408612411,0.19620535,46034.0,46032.0,0.108609]
[1641408613014,0.19620535,46034.0,46032.0,0.103609]
[1641408613213,1.7784,46033.0,46032.0,0.017]
[1641408613412,2.237973,46033.0,46032.0,0.017]
[1641408613610,0.837973,46033.0,46032.0,0.017]
[1641408614262,0.837973,46033.0,46031.0,0.00050727]
[1641408614562,0.560558,46032.0,46031.0,0.00050727]
[1641408614760,0.604058,46032.0,46031.0,0.00050727]
[1641408614959,0.704058,46032.0,46031.0,0.00050727]
[1641408615259,0.711058,46032.0,46031.0,0.00050727]
[1641408615962,0.16298233,46031.0,46029.0,0.04983427]
[1641408616164,0.49496035,46030.0,46029.0,0.04983427]
[1641408616361,0.54496035,46030.0,46029.0,0.04983427]
[1641408616562,0.64496035,46030.0,46029.0,0.04983427]
[1641408617166,0.65396035,46030.0,46026.0,0.05433]
[1641408617365,0.09188735,46027.0,46020.0,0.10990602]
[1641408617609,0.0435,46026.0,46020.0,0.10990602]
[1641408617809,0.43006174,46030.0,46020.0,0.10990602]
[1641408617810,0.09188735,46022.0,46020.0,0.10990602]
[1641408618011,0.0435,46021.0,46020.0,0.108665]
[1641408618211,0.0435,46021.0,46016.0,0.86088869]
[1641408618411,1.00188735,46017.0,46016.0,0.86088869]
[1641408618611,1.00188735,46017.0,46010.0,0.12089686]
[1641408618612,1.83986035,46017.0,46015.0,0.86088869]
[1641408618810,0.456231,46016.0,46015.0,0.86088869]
[1641408619013,0.4784,46016.0,46015.0,0.86088869]
[1641408619211,0.10869,46014.0,46010.0,0.01221186]
[1641408619412,0.097845,46013.0,46010.0,0.06655486]
[1641408619611,0.09188735,46012.0,46010.0,0.06706101]
[1641408619813,0.0435,46011.0,46010.0,0.06706101]
[1641408620010,0.0435,46011.0,46010.0,0.01271801]
[1641408620212,0.0435,46011.0,46010.0,0.00050615]
[1641408620613,0.097844,46011.0,46010.0,0.00050615]
[1641408621265,0.100844,46011.0,46009.0,0.08919415]
[1641408621659,0.0465,46011.0,46009.0,0.08919415]
[1641408622462,0.0435,46011.0,46009.0,0.08919415]
[1641408622660,0.0435,46011.0,46009.0,0.95008284]
[1641408623660,0.0435,46011.0,46009.0,0.08919415]
[1641408624563,0.09188735,46010.0,46009.0,0.08919415]
[1641408624763,0.13538735,46010.0,46009.0,0.08919415]
[1641408625219,0.14038735,46010.0,46009.0,0.08919415]
[1641408626523,0.13538735,46010.0,46008.0,0.108692]
[1641408626821,0.18973935,46010.0,46009.0,0.00119732]
[1641408627220,0.19473935,46010.0,46009.0,0.00119732]
[1641408629071,0.19973935,46010.0,46009.0,0.00119732]
[1641408629274,0.107852,46010.0,46009.0,0.00119732]
[1641408629476,0.0535,46010.0,46009.0,1.06119732]
[1641408629674,0.0535,46010.0,46009.0,1.42077032]
[1641408630173,0.01,46010.0,46009.0,1.42077032]
[1641408630378,0.01221222,46022.0,46020.0,0.11190254]
[1641408630575,0.01221222,46022.0,46021.0,1.50689827]
[1641408630775,0.01221222,46022.0,46021.0,1.86647127]
[1641408631173,0.02021222,46022.0,46021.0,0.52947127]
[1641408631374,0.02021222,46022.0,46021.0,0.77053558]
[1641408631576,0.206473,46039.0,46022.0,0.02019778]
[1641408631577,0.054318,46032.0,46022.0,0.02019778]
[1641408631776,0.13538735,46039.0,46036.0,0.16926329]
[1641408631777,0.09188735,46039.0,46036.0,0.16926329]
[1641408631976,0.359573,46038.0,46036.0,0.16926329]
[1641408632374,0.09188735,46039.0,46036.0,0.31520247]
[1641408632611,0.054309,46039.0,46036.0,0.14593918]
[1641408633013,0.14593494,46039.0,46036.0,0.14593918]
[1641408633209,0.16093494,46039.0,46036.0,0.14693918]
[1641408633612,0.16093494,46039.0,46037.0,0.054309]
[1641408633911,0.16093494,46039.0,46037.0,0.108616]
[1641408634311,0.14593494,46039.0,46037.0,0.108616]
[1641408635210,0.15193494,46039.0,46037.0,0.110616]
[1641408635715,0.19543494,46039.0,46037.0,0.056307]
[1641408636360,0.18943494,46039.0,46037.0,0.054307]
[1641408636759,0.18943494,46039.0,46036.0,0.00195504]
[1641408636961,0.359573,46038.0,46036.0,0.00195504]
[1641408637161,0.164831,46037.0,46036.0,0.00195504]
[1641408637763,0.164831,46037.0,46036.0,0.00315166]
[1641408639164,0.169831,46037.0,46036.0,0.00315166]
[1641408639364,0.509831,46037.0,46036.0,0.00315166]
[1641408639563,0.609831,46037.0,46036.0,0.00315166]
[1641408640214,0.269831,46037.0,46036.0,0.00315166]
[1641408640417,0.264831,46037.0,46036.0,0.00315166]
[1641408640816,0.499731,46037.0,46036.0,0.00315166]
[1641408641017,0.599731,46037.0,46036.0,0.00315166]
[1641408641213,0.605731,46037.0,46036.0,0.00315166]
[1641408641617,0.505731,46037.0,46026.0,0.10680166]
[1641408641818,0.09162594,46027.0,46026.0,0.10680166]
[1641408642022,0.13512594,46027.0,46026.0,0.10680166]
[1641408642421,0.13512594,46027.0,46025.0,0.162975]
[1641408642820,0.13512594,46027.0,46026.0,0.13547618]
[1641408645263,0.13512594,46027.0,46026.0,0.15147618]
[1641408646267,0.13512594,46027.0,46026.0,0.016]
[1641408646466,0.13512594,46027.0,46025.0,0.162975]
[1641408646866,0.13012594,46027.0,46025.0,0.162975]
[1641408647267,0.13112594,46027.0,46025.0,0.182975]
[1641408647511,0.0445,46027.0,46025.0,0.182975]
[1641408647916,0.08662594,46026.0,46025.0,0.182975]
[1641408648115,0.13012594,46026.0,46025.0,0.182975]
[1641408648513,0.13012594,46026.0,46025.0,0.162975]
[1641408649215,0.13112594,46026.0,46025.0,0.188975]
[1641408649816,0.13112594,46026.0,46025.0,0.13465]
[1641408651017,0.13112594,46026.0,46025.0,0.10865]
[1641408651267,0.13212594,46026.0,46025.0,0.13165]
[1641408652263,0.13212594,46026.0,46025.0,0.023]
[1641408652464,0.0435,46026.0,46024.0,0.054324]
[1641408653263,0.098825,46026.0,46024.0,0.073324]
[1641408654565,0.097825,46026.0,46024.0,0.054324]
[1641408655213,0.099825,46026.0,46024.0,0.080324]
[1641408656416,0.097825,46026.0,46024.0,0.054324]
[1641408657314,0.099825,46026.0,46024.0,0.081324]
[1641408657916,0.099825,46026.0,46025.0,0.00118687]
[1641408658514,0.097825,46026.0,46025.0,0.00118687]
[1641408659363,0.100825,46026.0,46025.0,0.02518687]
[1641408659568,0.35449068,46026.0,46025.0,0.02518687]
[1641408659766,0.71406368,46026.0,46025.0,0.02518687]
[1641408659963,0.81406368,46026.0,46025.0,0.02518687]
[1641408660564,1.14596368,46026.0,46025.0,0.00118687]
[1641408660767,1.14718788,46026.0,46025.0,0.00118687]
[1641408661265,1.14718788,46026.0,46021.0,0.01226074]
[1641408661266,1.20318788,46026.0,46021.0,0.01226074]
[1641408661467,0.25730294,46022.0,46021.0,0.01226074]
[1641408661669,0.60880273,46022.0,46021.0,0.01226074]
[1641408662066,0.70880273,46022.0,46021.0,0.01226074]
[1641408662265,0.70880273,46022.0,46020.0,0.00049289]
[1641408662522,0.96671758,46021.0,46020.0,0.00049289]
[1641408662724,1.01021758,46021.0,46020.0,0.00049289]
[1641408662920,1.11021758,46021.0,46020.0,0.00049289]
[1641408663320,1.11821758,46021.0,46020.0,0.00049289]
[1641408663524,1.16821758,46021.0,46020.0,0.00049289]
[1641408663723,1.16821758,46021.0,46020.0,0.00168992]
[1641408664424,1.16021758,46021.0,46020.0,0.00168992]
[1641408664621,1.16150897,46021.0,46020.0,0.00168992]
[1641408664821,1.16150897,46021.0,46020.0,0.00119703]
[1641408665020,2.31650897,46021.0,46020.0,0.00119703]
[1641408665221,2.32250897,46021.0,46020.0,0.00119703]
[1641408666464,2.31650897,46021.0,46020.0,0.00119703]
[1641408666865,2.96838897,46021.0,46020.0,0.00119703]
[1641408667068,1.81338897,46021.0,46020.0,0.00119703]
[1641408667266,1.54714439,46021.0,46020.0,0.00119703]
[1641408667466,1.545853,46021.0,46020.0,0.00119703]
[1641408668466,1.539853,46021.0,46020.0,0.00119703]
[1641408669368,2.625,46020.0,46019.0,0.00158613]
[1641408669570,3.876611,46020.0,46019.0,0.00158613]